lending/lending_fUSD_20240522
["ID","MTS","AMOUNT","RATE_DAILY","PERIOD"]
[327711160,1716348632729,-962.47257914,0.00013,2]
[327711163,1716348632741,-3002.23633276,0.00013,2]
[327711164,1716348632753,-9313.21597719,0.00013,2]
[327711170,1716348635191,1020.8855873,0.00012642,2]
[327711175,1716348639827,-603.45575644,0.00013,2]
[327711176,1716348639840,-910.60655848,0.00013,2]
[327711177,1716348639852,-7283.51905851,0.00013,2]
[327711178,1716348639865,-7768.1384,0.00013,2]
[327711179,1716348639877,-7146.2938,0.00013,2]
[327711180,1716348639890,-18261.65070178,0.00013,2]
[327711181,1716348639902,-573.2828905,0.00013,2]
[327711182,1716348639914,-3777.04723178,0.00013,2]
[327711183,1716348639926,-7944.81792,0.00013,2]
[327711184,1716348639939,-17307.53041,0.00013,2]
[327711185,1716348639952,-973.51784588,0.00013,2]
[327711186,1716348639964,-358.33485164,0.00013,2]
[327711187,1716348639976,-672.57,0.00013,2]
[327711188,1716348639989,-125359.63256329,0.00013,2]
[327711189,1716348639999,-1168597.16844592,0.00013,2]
[327711190,1716348640012,-48971.1,0.00013,2]
[327711197,1716348640672,-680.51216495,0.00013,2]
[327711198,1716348640685,-617.42097586,0.00013,2]
[327711199,1716348640697,-46950.5185435,0.00013,2]
[327711200,1716348640712,-389.72999925,0.00013,2]
[327711201,1716348640724,-652.20074213,0.00013,2]
[327711202,1716348640736,-2131.34718517,0.00013,2]
[327711203,1716348640748,-505.53116172,0.00013,2]
[327711204,1716348640761,-339.25813426,0.00013,2]
[327711205,1716348640792,-688.15196471,0.00013,2]
[327711206,1716348640803,-6699.49894914,0.00013,2]
[327711208,1716348641049,-959.199,0.00013,2]
[327711209,1716348641061,-631.33700009,0.00013,2]
[327711210,1716348641073,-345.59999998,0.00013,2]
[327711211,1716348641085,-1163.68068873,0.00013,2]
[327711212,1716348641098,-1023.66550466,0.00013,2]
[327711213,1716348641109,-7225.95188826,0.00013,2]
[327711214,1716348641120,-495.28604812,0.00013,2]
[327711257,1716348644663,-608355.48555652,0.00013,2]
[327711258,1716348644674,-7786.92172431,0.00013,2]
[327711259,1716348644686,-17479.27605587,0.00013,2]
[327711261,1716348645226,-154679.11187021,0.00013,2]
[327711262,1716348645238,-699.56393999,0.00013,2]
[327711263,1716348645250,-582.270009,0.00013,2]
[327711264,1716348645261,-489.23716,0.00013,2]
[327711265,1716348645272,-736.37395775,0.00013,2]
[327711266,1716348645284,-1066.32182804,0.00013,2]
[327711267,1716348645295,-714.03703323,0.00013,2]
[327711268,1716348645306,-3382.0,0.00013,2]
[327711269,1716348645318,-916421.61349055,0.00013,2]
[327711270,1716348645327,-3327.95189635,0.00013,2]
[327711271,1716348645337,-793.31291177,0.00013,2]
[327711272,1716348645346,-165.56962141,0.00013,2]
[327711273,1716348645356,-646799.84733305,0.00013,2]
[327711274,1716348645367,-4540.0,0.00013,2]
[327711502,1716348655029,787.76004597,0.00012999,2]
[327711503,1716348656098,339.0,0.00011161,2]
[327711504,1716348657721,11077.93653271,0.00012999,2]
[327711505,1716348662792,367.19529468,0.00012999,2]
[327711506,1716348674204,1072.1264664,0.00012739,2]
[327711507,1716348677565,448.2929716,0.00012991,2]
[327711508,1716348701336,1071.77922931,0.00012731,2]
[327711509,1716348780225,150.0,0.00012914,2]
[327711510,1716348788272,150.0,0.00012952,2]
[327711511,1716348790224,179.84325431,0.000129,2]
[327711512,1716348796521,200.0,0.00012895,2]
[327711513,1716348796907,200.0,0.00012896,2]
[327711514,1716348808212,500.0,0.00012896,2]
[327711515,1716348828380,1654.2213856,0.00012638,2]
[327711516,1716348836913,150.0,0.00012909,2]
[327711517,1716348924963,6345.52035264,0.000129,2]
[327711518,1716348941758,166.24469585,0.000129,2]
[327711519,1716348992163,1390.0,0.000129,2]
[327711520,1716348997067,526.65,0.00012888,2]
[327711521,1716348998322,164.23,0.00012903,2]
[327711522,1716348999459,372.70015,0.0001287,2]
[327711523,1716349010713,250.0,0.00012903,2]
[327711524,1716349021675,240973.38699918,0.00012999,2]
[327711525,1716349023204,406.55657879,0.000129,2]
[327711526,1716349023688,377.8,0.00012905,2]
[327711527,1716349084847,247.8847978,0.00012991,2]
[327711528,1716349090982,755.58614876,0.00011699,2]
[327711529,1716349102619,20281.2620553,0.000129,2]
[327711530,1716349105799,746.31,0.00010959,2]
[327711531,1716349109504,241.61489977,0.00012999,2]
[327711532,1716349111365,155.35934212,0.00012905,2]
[327711533,1716349117133,300.0903904,0.00012905,2]
[327711534,1716349120083,215.23808935,0.00012999,2]
[327711535,1716349122827,263.21251245,0.00012349,2]
[327711536,1716349124111,423.55503282,0.00011699,2]
[327711537,1716349131226,485.49,0.00012914,2]
[327711538,1716349140026,390.29289367,0.00011699,2]
[327711539,1716349151411,567.54,0.00011012,2]
[327711540,1716349327438,250.0,0.00012695,2]
[327711541,1716349349484,11866.33,0.00012914,2]
[327711542,1716349390824,310.58346,0.0001287,2]
[327711543,1716349400707,23900.0,0.00012704,2]
[327711544,1716349406020,191.4415457,0.00012991,2]
[327711545,1716349428300,1366.34,0.00012695,2]
[327711546,1716349441880,150.0,0.00012738,2]
[327711547,1716349449886,150.0,0.00012915,2]
[327711548,1716349485666,250.0,0.00012686,2]
[327711549,1716349491927,500.0,0.00012686,2]
[327711550,1716349494852,166.3,0.00012686,2]
[327711551,1716349502221,1091.01,0.00012787,2]
[327711552,1716349506778,150.0,0.00012986,2]
[327711553,1716349569614,795.8,0.00012707,2]
[327711554,1716349621485,697.76,0.00012622,2]
[327711555,1716349628175,-464.17786252,0.00013,2]
[327711556,1716349635673,539.16,0.00010778,2]
[327711558,1716349640168,-954.77605001,0.00013,2]
[327711559,1716349650477,3189.87776514,0.000129,2]
[327711560,1716349657146,239.57,0.0001285,2]
[327711561,1716349657360,239.57,0.00012885,2]
[327711562,1716349657591,239.57,0.00012921,2]
[327711563,1716349657792,239.57,0.00012956,2]
[327711564,1716349658005,239.57,0.00012991,2]
[327711565,1716349694502,320.42,0.00012674,2]
[327711566,1716349730240,159.5346214,0.00012991,2]
[327711567,1716349807114,258.81955,0.0001287,2]
[327711573,1716349832254,-485.88175586,0.00013,2]
[327711574,1716349832284,-624715.7892,0.00013,2]
[327711575,1716349832297,-82982.30087,0.00013,2]
[327711576,1716349832478,-942.89298596,0.00013,2]
[327711578,1716349838814,-3741.94117691,0.00013,2]
[327711579,1716349838938,-3827.68210086,0.00013,2]
[327711580,1716349838950,-6994.5,0.00013,2]
[327711581,1716349839148,-342.70650659,0.00013,2]
[327711582,1716349839160,-350.06850999,0.00013,2]
[327711606,1716349840363,-643.54655247,0.00013,2]
[327711608,1716349840375,-622.96411995,0.00013,2]
[327711652,1716349843690,-49207.6798323,0.00013,2]
[327711653,1716349843702,-1031.53958,0.00013,2]
[327711654,1716349843897,-623.25,0.00013,2]
[327711655,1716349843913,-1220.00000001,0.00013,2]
[327711656,1716349843929,-826.25901472,0.00013,2]
[327711657,1716349843945,-698.08993608,0.00013,2]
[327711658,1716349843956,-49961.0972705,0.00013,2]
[327711659,1716349844097,-2267.5,0.00013,2]
[327711660,1716349844181,-434.4604038,0.00013,2]
[327711661,1716349848520,-530.6,0.00013,2]
[327711662,1716349848546,-1912.9668,0.00013,2]
[327711663,1716349848636,-272.69910537,0.00013,2]
[327711664,1716349848647,-382.28943785,0.00013,2]
[327711665,1716349848658,-1333.14755087,0.00013,2]
[327711666,1716349848669,-497.75,0.00013,2]
[327711667,1716349848777,-322.9200001,0.00013,2]
[327711668,1716349848788,-2578.52898,0.00013,2]
[327711669,1716349848799,-1303.58494265,0.00013,2]
[327711670,1716349848867,-20023.10395274,0.00013,2]
[327711671,1716349848878,-7567.08157827,0.00013,2]
[327711672,1716349848890,-3730.04859743,0.00013,2]
[327711673,1716349852195,527.96616428,0.00012999,2]
[327711674,1716349854561,499.42465268,0.00012999,2]
[327711675,1716349857120,200.29,0.00010959,2]
[327711676,1716349859812,715.83757492,0.00012999,2]
[327711678,1716349862559,150.0,0.00012999,2]
[327711679,1716349869002,512.84414561,0.00011699,2]
[327711680,1716349874559,2196.61951911,0.00012999,2]
[327711681,1716349882680,162.1041266,0.00012999,2]
[327711682,1716349902444,182.88615185,0.00012999,2]
[327711683,1716349920383,11700.24,0.00012672,2]
[327711684,1716349929760,6022.13,0.000129,2]
[327711685,1716349938773,250.0,0.00012686,2]
[327711686,1716349941469,12812.29,0.000129,2]
[327711687,1716349950354,250.0,0.00012686,2]
[327711688,1716349954687,5000.0,0.0001292,2]
[327711689,1716349966803,4702.22,0.000129,2]
[327711690,1716349977782,3000.0,0.000129,2]
[327711691,1716349986975,1542.0842833,0.000129,2]
[327711692,1716349995682,1000.0,0.00012999,2]
[327711693,1716349996336,500.0,0.00012685,2]
[327711694,1716350007991,500.0,0.00012896,2]
[327711695,1716350068439,530.2,0.00012701,2]
[327711696,1716350071712,178.71,0.00012672,2]
[327711697,1716350085572,1000.0,0.00012999,2]
[327711698,1716350105992,150.0,0.00012935,2]
[327711699,1716350109209,797.67310733,0.00012991,2]
[327711700,1716350114142,150.0,0.00012941,2]
[327711701,1716350154783,441.79,0.00012701,2]
[327711702,1716350165360,150.0,0.00012785,2]
[327711703,1716350193754,555.72,0.00010794,2]
[327711704,1716350225179,215.68296,0.0001287,2]
[327711705,1716350232513,179.67,0.00012914,2]
[327711706,1716350232737,179.67,0.0001295,2]
[327711707,1716350232959,179.67,0.00012985,2]
[327711708,1716350424438,250.0,0.00012683,2]
[327711709,1716350427893,1292.79202373,0.00012999,2]
[327711710,1716350428749,1245.32000866,0.00012999,2]
[327711711,1716350430816,168.39907266,0.00012999,2]
[327711712,1716350434769,488.89301669,0.00012999,2]
[327711713,1716350436035,200.94949806,0.00012999,2]
[327711714,1716350438021,344.46064824,0.00012999,2]
[327711715,1716350441377,5291.5088155,0.00012999,2]
[327711716,1716350441731,250.0,0.00012682,2]
[327711717,1716350451100,751.35143743,0.00011699,2]
[327711718,1716350452918,19730.16017374,0.00012985,2]
[327711719,1716350455474,180.54097735,0.00012985,2]
[327711720,1716350456257,551.31022737,0.00012985,2]
[327711721,1716350460807,289.22433229,0.00012985,2]
[327711722,1716350462123,409.74863585,0.00012985,2]
[327711723,1716350464619,635.33,0.00012665,2]
[327711724,1716350470736,155.0,0.00012985,2]
[327711725,1716350471641,7518.67413038,0.00012985,2]
[327711726,1716350477565,770.90007524,0.00012999,2]
[327711727,1716350478664,657.93582669,0.00012987,2]
[327711728,1716350480076,264.40880176,0.00012999,2]
[327711729,1716350481368,317.83004084,0.00012999,2]
[327711730,1716350481700,283.48706002,0.00012999,2]
[327711731,1716350481840,168.57104605,0.00012999,2]
[327711732,1716350482323,35378.96571757,0.00012999,2]
[327711733,1716350482445,155.73579251,0.00012999,2]
[327711734,1716350482616,2192.15212442,0.00012999,2]
[327711735,1716350483596,255.49743644,0.00012999,2]
[327711736,1716350483726,176.16682827,0.00012999,2]
[327711737,1716350484513,2000.744652,0.00012999,2]
[327711738,1716350484547,162.55848361,0.00012999,2]
[327711739,1716350484749,1247.15211335,0.00012999,2]
[327711740,1716350485024,369.2541703,0.00012991,2]
[327711741,1716350487342,275.22315385,0.00012999,2]
[327711742,1716350487913,348.63132743,0.00012999,2]
[327711743,1716350488226,1601.34270501,0.00012754,2]
[327711744,1716350488410,178.29196213,0.00012999,2]
[327711745,1716350489958,155.35404466,0.00012999,2]
[327711746,1716350490135,188.22315855,0.00012999,2]
[327711747,1716350491905,1086.73140718,0.00012999,2]
[327711748,1716350494274,169.00336876,0.00012999,2]
[327711749,1716350494871,4448.54510952,0.00012999,2]
[327711750,1716350502442,518.38,0.00012654,2]
[327711751,1716350512031,155.1317019,0.00012991,2]
[327711752,1716350516949,13598.05090555,0.000129,2]
[327711753,1716350520489,362.23063695,0.00012987,2]
[327711754,1716350536478,364.2661811,0.00012987,2]
[327711755,1716350540074,648.48,0.00012687,2]
[327711756,1716350540776,289.81619097,0.00012987,2]
[327711757,1716350541054,1828.9268489,0.00012991,2]
[327711758,1716350542378,1392.02800715,0.00012999,2]
[327711759,1716350546246,551.6548074,0.00012987,2]
[327711760,1716350548483,234.06772659,0.00012987,2]
[327711761,1716350549512,155.92720636,0.00012987,2]
[327711762,1716350551970,5583.59408825,0.00012999,2]
[327711763,1716350553431,150.0,0.00012671,2]
[327711764,1716350553594,5115.3310433,0.00012987,2]
[327711765,1716350558385,894.68976378,0.00012999,2]
[327711766,1716350564695,2604.67361667,0.00012727,2]
[327711767,1716350566288,5278.6589215,0.00012991,2]
[327711768,1716350567363,207.02594287,0.00012999,2]
[327711769,1716350570533,10962.30845486,0.00012999,2]
[327711770,1716350573340,19626.96507151,0.00012999,2]
[327711771,1716350574395,1394.31872609,0.00012999,2]
[327711772,1716350577144,1483.63346546,0.000129,2]
[327711773,1716350577578,190.70203786,0.00012999,2]
[327711774,1716350579960,317.0267429,0.00012999,2]
[327711775,1716350579996,1814.44455767,0.00012999,2]
[327711776,1716350580237,1000.0,0.000129,2]
[327711777,1716350582053,500.0,0.00012671,2]
[327711778,1716350582982,333.97821211,0.00012999,2]
[327711779,1716350584510,1999.69862257,0.00012999,2]
[327711780,1716350593793,494.6660732,0.00012991,2]
[327711781,1716350602619,33054.64,0.00012687,2]
[327711782,1716350603500,779.4221,0.000129,2]
[327711783,1716350616285,179.7358,0.0001287,2]
[327711784,1716350617001,3868.62999713,0.000129,2]
[327711785,1716350621798,161.17106516,0.000129,2]
[327711786,1716350648127,1056.7377406,0.00012991,2]
[327711787,1716350673704,21376.9640046,0.000129,2]
[327711788,1716350680986,571.77,0.00010786,2]
[327711789,1716350683702,320.05804299,0.000129,2]
[327711790,1716350735163,1961.272,0.000129,2]
[327711791,1716350746797,1896.18152927,0.00012999,2]
[327711792,1716350750747,165.71,0.00012686,2]
[327711793,1716350770256,150.0,0.00012877,2]
[327711794,1716350779987,28206.32,0.00012718,2]
[327711795,1716350784638,162.47,0.00012847,2]
[327711796,1716350784851,162.47,0.00012882,2]
[327711797,1716350785306,162.47,0.00012917,2]
[327711798,1716350785523,162.47,0.00012953,2]
[327711799,1716350785729,162.47,0.00012988,2]
[327711800,1716350810040,220.6011116,0.00012991,2]
[327711801,1716350813548,10000.0,0.0001271,2]
[327711802,1716350822495,150.0,0.00012989,2]
[327711803,1716350822667,150.0,0.00012785,2]
[327711804,1716350822725,150.0,0.00012799,2]
[327711805,1716350826133,-2636.82563961,0.00013,2]
[327711806,1716350830195,-5509.90921174,0.00013,2]
[327711807,1716350836110,-736.58065588,0.00013,2]
[327711808,1716350837858,5623.0476,0.000129,2]
[327711809,1716350845095,-3379.92196797,0.00013,2]
[327711810,1716350848318,1000.0,0.00012677,2]
[327711811,1716350851320,16974.5912,0.000129,2]
[327711812,1716350864443,1084.6451543,0.00012991,2]
[327711813,1716350892351,775.6585098,0.00012991,2]
[327711814,1716350946190,6158.0676716,0.00012991,2]
[327711815,1716350959098,23890.0,0.00012671,2]
[327711816,1716350964610,628.91686,0.0001287,2]
[327711817,1716350972133,1005.0,0.000129,2]
[327711818,1716350972317,1250.5609836,0.00012991,2]
[327711819,1716350981864,250.0,0.00012688,2]
[327711822,1716351001118,583.365043,0.00012991,2]
[327711823,1716351005999,2924.0546181,0.000129,2]
[327711827,1716351031544,-600.0,0.00013,2]
[327711828,1716351031657,-10498.35,0.00013,2]
[327711829,1716351031669,-500.0,0.00013,2]
[327711830,1716351031681,-511.34363397,0.00013,2]
[327711831,1716351031934,-271.2999999,0.00013,2]
[327711838,1716351037545,-10000.274256,0.00013,2]
[327711839,1716351037557,-6995.7,0.00013,2]
[327711840,1716351037569,-3791.68408224,0.00013,2]
[327711841,1716351037604,-1023.5008851,0.00013,2]
[327711842,1716351037616,-358.48667185,0.00013,2]
[327711843,1716351037664,-417.33513399,0.00013,2]
[327711844,1716351037676,-515.29338044,0.00013,2]
[327711845,1716351037764,431.98,0.00012734,2]
[327711846,1716351037781,-655.37079998,0.00013,2]
[327711847,1716351037835,-361.675,0.00013,2]
[327711859,1716351039998,-641902.22174631,0.00013,2]
[327711860,1716351040010,-857009.36385012,0.00013,2]
[327711861,1716351040120,-637.94921328,0.00013,2]
[327711862,1716351040277,-439.015,0.00013,2]
[327711914,1716351042722,-322.97999998,0.00013,2]
[327711915,1716351042780,-2000.0,0.00013,2]
[327711916,1716351042838,-460.07091854,0.00013,2]
[327711917,1716351042850,-2306.6388282,0.00013,2]
[327711918,1716351042897,-5972.12101604,0.00013,2]
[327711919,1716351042975,-481.6359543,0.00013,2]
[327711920,1716351043001,-2521.89715929,0.00013,2]
[327711921,1716351043028,-661.66608519,0.00013,2]
[327711922,1716351043057,-1673.26,0.00013,2]
[327711923,1716351043086,-3486.23991704,0.00013,2]
[327711924,1716351043111,-33467.95652185,0.00013,2]
[327711925,1716351043138,-13208.04636194,0.00013,2]
[327711930,1716351043197,-1040.16476904,0.00013,2]
[327711944,1716351044615,948.3061,0.000129,2]
[327711945,1716351046536,-8321.24884357,0.00013,2]
[327711946,1716351046548,-9541.89190664,0.00013,2]
[327711947,1716351046560,-13658.64333309,0.00013,2]
[327711948,1716351046650,-1741.4332988,0.00013,2]
[327711949,1716351046663,-489.694,0.00013,2]
[327711950,1716351046674,-2923.5423352,0.00013,2]
[327711951,1716351046826,-2060.92748132,0.00013,2]
[327711952,1716351046909,820.39377359,0.00012999,2]
[327711960,1716351052076,223.03260413,0.00012869,2]
[327711961,1716351052156,4269.0942589,0.00012991,2]
[327711962,1716351052475,234.93631156,0.00012999,2]
[327711963,1716351055580,1000.0,0.00012999,2]
[327711964,1716351055968,527.00253265,0.00012999,2]
[327711965,1716351056829,1297.77550926,0.00012349,2]
[327711966,1716351059707,155.24315078,0.00012999,2]
[327711967,1716351059739,300.48804712,0.00012999,2]
[327711968,1716351059775,1176.00454533,0.00012999,2]
[327711969,1716351059806,162.04660562,0.00012999,2]
[327711970,1716351060178,155.42860413,0.00012999,2]
[327711971,1716351060879,2312.37434478,0.00012999,2]
[327711972,1716351061162,524.88304098,0.000129,2]
[327711973,1716351061833,936.22696761,0.00012999,2]
[327711974,1716351062219,199.68532064,0.00012999,2]
[327711975,1716351063388,19633.46010502,0.00012999,2]
[327711976,1716351066242,622.9323276,0.00012999,2]
[327711977,1716351066539,10934.65564137,0.00012999,2]
[327711978,1716351066766,855.51117982,0.00012999,2]
[327711979,1716351067538,319.07658176,0.00012999,2]
[327711980,1716351067572,276.02475615,0.00012999,2]
[327711981,1716351067603,155.46248943,0.00012999,2]
[327711982,1716351067823,157.16032683,0.00012999,2]
[327711983,1716351068619,3008.23651126,0.00012999,2]
[327711984,1716351071622,155.0,0.00012999,2]
[327711985,1716351096530,406.15859567,0.00012999,2]
[327711986,1716351107511,154.76529632,0.000129,2]
[327711987,1716351112463,298.91796065,0.00012999,2]
[327711988,1716351135824,1562.6313674,0.00012991,2]
[327711989,1716351159043,3090.21232745,0.00012999,2]
[327711990,1716351166308,183.15044424,0.000129,2]
[327711991,1716351170231,1092.5576,0.000129,2]
[327711992,1716351180358,19495.88921672,0.00012999,2]
[327711993,1716351198285,1294.32311073,0.00012999,2]
[327711994,1716351207575,500.0,0.00012896,2]
[327711995,1716351214140,383.8155602,0.00012991,2]
[327711996,1716351266322,167.07,0.00012763,2]
[327711997,1716351270012,4445.2518037,0.00012991,2]
[327711998,1716351322988,645.2991515,0.00012991,2]
[327711999,1716351337368,587.97,0.00010888,2]
[327712000,1716351355179,963.83393,0.0001287,2]
[327712001,1716351367999,989.08897698,0.000129,2]
[327712002,1716351377110,215.1289669,0.000129,2]
[327712003,1716351398837,152.31,0.00012913,2]
[327712004,1716351398885,152.31,0.00012958,2]
[327712005,1716351404613,3695.5951096,0.00012991,2]
[327712007,1716351412176,178.42608331,0.00012869,2]
[327712008,1716351422006,1056.10389005,0.0001297,2]
[327712009,1716351424094,-150.0,0.00013,2]
[327712010,1716351424241,-150.0,0.00013,2]
[327712011,1716351424287,-212.53449412,0.00013,2]
[327712012,1716351424701,288.0,0.00012999,2]
[327712013,1716351427867,154.76529631,0.000129,2]
[327712014,1716351435066,150.0,0.00012804,2]
[327712015,1716351435104,150.0,0.00012901,2]
[327712016,1716351435317,150.0,0.0001273,2]
[327712017,1716351435351,266.43580042,0.00012894,2]
[327712018,1716351442047,170.91743297,5e-05,2]
[327712019,1716351464289,916.15560024,0.000129,2]
[327712020,1716351473285,1000.0,0.00012751,2]
[327712021,1716351481195,150.0,0.00012799,2]
[327712022,1716351489549,150.0,0.00012848,2]
[327712023,1716351489600,150.0,0.00012999,2]
[327712024,1716351489733,300.0,0.00012757,2]
[327712025,1716351498536,659.39265132,0.000129,2]
[327712026,1716351513316,214.504468,0.00012991,2]
[327712027,1716351522331,215.12896689,0.000129,2]
[327712028,1716351525066,250.0,0.0001277,2]
[327712029,1716351538232,287.65,0.0001277,2]
[327712030,1716351542554,1186.1271572,0.00012991,2]
[327712031,1716351593163,308.3057741,0.00012991,2]
[327712032,1716351610261,170.42745764,0.0001299,2]
[327712033,1716351613424,181.4,0.0001299,2]
[327712034,1716351613498,181.4,0.0001299,2]
[327712035,1716351628522,439.59510088,0.000129,2]
[327712036,1716351675046,2647.9657085,0.00012991,2]
[327712037,1716351701699,383.0413265,0.00012991,2]
[327712038,1716351737991,154.76529631,0.000129,2]
[327712039,1716351746298,952.97477,0.0001287,2]
[327712040,1716351758811,293.06340058,0.000129,2]
[327712041,1716351783454,3255.8554049,0.00012991,2]
[327712042,1716351837115,558.57,0.00010837,2]
[327712043,1716351863246,189.7091144,0.00012991,2]
[327712044,1716351866257,152.31,0.00012933,2]
[327712045,1716351866484,152.31,0.00012985,2]
[327712046,1716351889054,195.3756004,0.000129,2]
[327712047,1716351918134,188.9914395,0.00012991,2]
[327712048,1716351954756,824.54004018,0.000129,2]
[327712049,1716351972438,430.9549265,0.00012991,2]
[327712050,1716352011529,191.43,0.00012789,2]
[327712051,1716352014120,929.11,0.00012789,2]
[327712052,1716352022653,250.0,0.0001281,2]
[327712053,1716352037443,164.04010702,0.000129,2]
[327712054,1716352038203,154.76529631,0.000129,2]
[327712055,1716352039116,-790.65315426,0.00013,2]
[327712056,1716352042116,-3333.49371532,0.00013,2]
[327712057,1716352052204,2314.2249875,0.00012991,2]
[327712058,1716352084296,304.2850707,0.0003,30]
[327712061,1716352106619,700.5671022,0.00012991,2]
[327712065,1716352160232,5914.5722625,0.00012991,2]
[327712069,1716352214979,163.9908118,0.00012991,2]
[327712071,1716352233109,-205096.68214465,0.00013,2]
[327712072,1716352233120,-626.71201654,0.00013,2]
[327712073,1716352233135,-346.48303694,0.00013,2]
[327712074,1716352233208,-667.36237526,0.00013,2]
[327712075,1716352233219,-418.90217464,0.00013,2]
[327712076,1716352233232,-700.206448,0.00013,2]
[327712077,1716352233245,-7966.72183934,0.00013,2]
[327712078,1716352233261,-582620.28607109,0.00013,2]
[327712079,1716352233285,-781.95019923,0.00013,2]
[327712080,1716352233296,-2130.44985288,0.00013,2]
[327712081,1716352233307,-827.13712285,0.00013,2]
[327712082,1716352233322,-896.99068152,0.00013,2]
[327712083,1716352233335,-6370.88873846,0.00013,2]
[327712084,1716352233347,-259.86200001,0.00013,2]
[327712085,1716352233359,-357.4799971,0.00013,2]
[327712086,1716352233439,-544.0998858,0.00013,2]
[327712087,1716352233451,-181139.78594112,0.00013,2]
[327712088,1716352233462,-18266.78652647,0.00013,2]
[327712092,1716352238142,-91625.43773575,0.00013,2]
[327712093,1716352238154,-835.11710452,0.00013,2]
[327712094,1716352238165,-946.67592046,0.00013,2]
[327712095,1716352238179,-6068.79817794,0.00013,2]
[327712096,1716352238190,-991.78749985,0.00013,2]
[327712097,1716352238262,-351.13088306,0.00013,2]
[327712098,1716352238273,-6628.30439943,0.00013,2]
[327712099,1716352238287,-33116.26820925,0.00013,2]
[327712100,1716352238358,-22644.64427988,0.00013,2]
[327712102,1716352238456,-785.98070487,0.00013,2]
[327712103,1716352238468,-439.45564214,0.00013,2]
[327712122,1716352240157,-363.6,0.00013,2]
[327712123,1716352241550,163.9275366,0.00012991,2]
[327712124,1716352242458,-2267.99353338,0.00013,2]
[327712125,1716352242470,-53126.63443164,0.00013,2]
[327712126,1716352242556,-530.86535505,0.00013,2]
[327712147,1716352243092,-345.78,0.00013,2]
[327712148,1716352243257,-26603.54763778,0.00013,2]
[327712149,1716352243285,-2737.60954103,0.00013,2]
[327712150,1716352243297,-4568.49838837,0.00013,2]
[327712151,1716352243383,-376701.67036315,0.00013,2]
[327712152,1716352243395,-82322.79738652,0.00013,2]
[327712154,1716352247714,-66095.26676568,0.00013,2]
[327712155,1716352247737,-88196.66294489,0.00013,2]
[327712156,1716352247782,-1729.79850976,0.00013,2]
[327712157,1716352247800,-585.35274278,0.00013,2]
[327712158,1716352247877,-526.995,0.00013,2]
[327712159,1716352247888,-14994.31883665,0.00013,2]
[327712160,1716352247902,-28944.85528841,0.00013,2]
[327712161,1716352247962,-1108.82174182,0.00013,2]
[327712162,1716352247982,-3135.4164867,0.00013,2]
[327712163,1716352251235,19730.16017374,0.00012991,2]
[327712164,1716352251853,1362.82549172,0.00012991,2]
[327712165,1716352252722,155.0,0.00012991,2]
[327712166,1716352256765,2237.11604471,0.00012999,2]
[327712167,1716352262124,2701.72426751,0.00012999,2]
[327712168,1716352262500,20157.99521511,0.00012999,2]
[327712169,1716352266412,2547.86451751,9.75e-05,2]
[327712170,1716352274024,5570.09237704,0.00012999,2]
[327712171,1716352314159,292.40415811,0.00012999,2]
[327712172,1716352324209,603.586862,0.00012991,2]